Workbook

Sheet Modified Method (hidden)
D4: 0.25
C6: CSTFR | D6: t10/T | E6: Dose | F6: DPEC
C7: 1.7 | D7: 0.2 | E7: 10 | F7: 2.87 | H7: =3.49996/4*F7*D7^-0.8981 -> 10.65687685 | I7: =5.314*F7*EXP(-2.2491*D7) -> 9.726332296
C8: 2.4 | D8: 0.3 | E8: 10 | F8: 3.71 | H8: 9.571376509 | I8: 10.04069891
C9: 3.5 | D9: 0.4 | E9: 8.4 | F9: 4 | H9: 7.969902395 | I9: 8.645156384
C10: 5.1 | D10: 0.5 | E10: 6.79 | F10: 4 | H10: 6.52256056 | I10: 6.903918911
C11: 8 | D11: 0.6 | E11: 5.47 | F11: 4 | H11: 5.537394219 | I11: 5.513387406
C12: 16 | D12: 0.7 | E12: 4.53 | F12: 4 | H12: 4.821481794 | I12: 4.402925509
C17: CSTFR | D17: t10/T | E17: Dose | F17: DPEC | G17: DPEC
C18: 1.7 | D18: 0.2 | E18: 13.95 | F18: 4 | G18: 10 | H18: =5.314*G18*EXP(-2.2491*D18) -> 33.88965957
C19: 2.4 | D19: 0.3 | E19: 10.78 | F19: 4 | G19: 4 | H19: 10.82555138
C20: 3.5 | D20: 0.4 | E20: 8.4 | F20: 4 | G20: 20 | H20: 43.22578192
C21: 5.1 | D21: 0.5 | E21: 6.79 | F21: 4 | G21: 4 | H21: 6.903918911
C22: 8 | D22: 0.6 | E22: 5.47 | F22: 4 | G22: 4 | H22: 5.513387406
C23: 16 | D23: 0.7 | E23: 4.53 | F23: 4 | G23: 4 | H23: 4.402925509

Sheet Main Menu
B1: Copyright © 2001-2022 State Water Resources Control Board, Divison of Drinking Water, all rights reserved.
B2: (707/576-2732), guy.schott@waterboards.ca.gov
B3: Main Menu
B7: =MID(CELL("filename",A2),FIND("[",CELL("filename",A2))+1,FIND("]",CELL("filename",A2))-FIND("[",CELL("filename",A2))-1) -> tracer_studies_db_1_31_ada.xlsm
B8: Chlorine Contact Chamber Design and Flow Evaluation
B9: Version 1.31
F15: Displays different contact tanks with and without baffles
F16: and related flow parameters.
F18: Graph plot: Length-to-Width (L:W) ratio vs. t10/HRT (baffle factor, BF).
F19: Individual data points are associated to a tracer study.
F20: It may be used to predict t10/HRT based on L:W ratio and to develop a
F21: best-fit curve for individual data points.
F23: Graph plot: Length-to-Width ratio vs. t10/HRT. Individual data points
F24: are not associated to the person or company that conducted the test.
F25: This graph may be used to develop the best-fit curve.
F27: Graph plot: Length-to-Width ratio vs. t10/HRT for all data points
F28: excluding Marske and Boyle results.
F29: This graph may be used to develop the best-fit curve.
F31: Graph plot: Length-to-Width ratio vs. t10/HRT for under-and-over flow
F32: configurations.
F34: Graph plot: Log (Length-to-Width ratio * horizontal velocity)
F35: vs. t10/HRT.
F37: The short-circuiting index t10/HRT is calculated for different L:W ratios
F38: based on data points as a whole and data points from test conducted by
F39: individual person(s) or Company.
F40: New: predicted baffling factor (t10/HRT) when considering horizontal velocity.
F42: Defines performance parameters commonly used in conventional
F43: analysis of contact basins.
F45: List the references of person(s) or company that conducted the tracer
F46: studies listed in this data base.
C48: For questions and | F48: Guy Schott, P.E.
C49: comments, you may | F49: Associate Civil Engineer
C50: contact: | F50: Mendocino District
F51: 50 D Street, Suite 200
F52: Santa Rosa, CA 95404
F53: 707-576-2732, email: guy.schott@waterboards.ca.gov

Sheet CalsL_W (hidden)
C3: Yuba City | K3: Demare | O3: Brooktrails | S3: Cal Water | W3: Brooktrails
C4: Degrees | D4: 180 | E4: 24 | H4: 180 | I4: 24 | K4: Degrees | L4: 180 | M4: 40 | O4: Degrees | P4: 180 | Q4: 30 | S4: Degrees | T4: 180 | U4: 30 | W4: Degrees | X4: 180 | Y4: 30
C5: Diameter | D5: 194 | E5: 194 | H5: 100 | I5: 100 | K5: Diameter | L5: 10 | M5: 10 | O5: Diameter | P5: 190 | Q5: 190 | S5: Diameter | T5: 45 | U5: 45 | W5: Diameter | X5: 25 | Y5: 25
C6: N Baffles | D6: 1 | K6: N Baffles | L6: 2 | O6: N Baffles | P6: 2 | S6: N Baffles | T6: 3 | W6: N Baffles | X6: 5
C7: Cal Area | D7: =PI()*(D5^2)/4/(D6+1) -> 14779.62264 | H7: =PI()*(H5^2)/4/2 -> 3926.990817 | K7: Cal Area | L7: =PI()*(L5^2)/4/(L6+1) -> 26.17993878 | M7: =L7*0.9 -> 23.5619449 | O7: Cal Area | P7: =PI()*(P5^2)/4/(P6+1) -> 9450.9579 | Q7: =P7*0.9 -> 8505.86211 | S7: Cal Area | T7: =PI()*(T5^2)/4/(T6+1) -> 397.6078202 | U7: =T7*0.9 -> 357.8470382 | W7: Cal Area | X7: =PI()*(X5^2)/4/(X6+1) -> 81.81230869 | Y7: =X7*0.9 -> 73.63107782
C8: Cal width | D8: =D7/D5 -> 76.18362185 | H8: =H7/H5 -> 39.26990817 | K8: Cal width | L8: =L7/L5 -> 2.617993878 | M8: =M7/(M5*0.9) -> 2.617993878 | O8: Cal width | P8: =P7/P5 -> 49.74188368 | Q8: =Q7/(Q5*0.9) -> 49.74188368 | S8: Cal width | T8: =T7/T5 -> 8.835729338 | U8: =U7/(U5*0.9) -> 8.835729338 | W8: Cal width | X8: =X7/X5 -> 3.272492347 | Y8: =Y7/(Y5*0.9) -> 3.272492347
C9: Curcoference | E9: =PI()*E5 -> 609.4689748 | I9: =PI()*I5 -> 314.1592654 | K9: Curcoference | M9: =PI()*M5 -> 31.41592654 | O9: Curcoference | Q9: =PI()*Q5 -> 596.9026042 | S9: Curcoference | U9: =PI()*U5 -> 141.3716694 | W9: Curcoference | Y9: =PI()*Y5 -> 78.53981634
E10: =PI()*E5*(360-E4)/360 -> 568.8377098 | I10: =PI()*I5*(360-24)/360 -> 293.2153143 | M10: =PI()*M5*(360-M4)/360 -> 27.92526803 | Q10: =PI()*Q5*(360-Q4)/360 -> 547.1607205 | U10: =PI()*U5*(360-U4)/360 -> 129.590697 | W10: L (total) | X10: 150.7 | Y10: =PI()*Y5*(360-Y4)/360 -> 71.99483164
C11: L:W | D11: =E10/D8 -> 7.466666667 | H11: =I10/H8 -> 7.466666667 | K11: L:W | L11: =M10/L8 -> 10.66666667 | O11: L:W | P11: =Q10/P8 -> 11 | S11: L:W | T11: =U10/T8 -> 14.66666667 | W11: L:W | X11: =X10/X8 -> 46.05052785
D12: =E9/D8 -> 8 | H12: =I9/H8 -> 8 | L12: =M9/L8 -> 12 | P12: =Q9/P8 -> 12 | T12: =U9/T8 -> 16 | X12: =Y9/X8 -> 24
W13: surface area | X13: =PI()*X5^2/4 -> 490.8738521
C15: Flow | D15: 12 | E15: MGD | F15: 12.1 | G15: MGD | H15: 24.9 | I15: MGD | K15: Flow | L15: 0.0288 | M15: MGD | O15: Flow | P15: 0.0288 | Q15: MGD | S15: Flow | T15: 1.44 | U15: MGD | W15: Flow | X15: 1.44 | Y15: MGD
C16: Flow | D16: =D15*1000000/24/60 -> 8333.333333 | E16: gpm | F16: =F15*1000000/24/60 -> 8402.777778 | G16: gpm | H16: =H15*1000000/24/60 -> 17291.66667 | I16: gpm | K16: Flow | L16: 20 | M16: gpm | O16: Flow | P16: 5556 | Q16: gpm | S16: Flow | T16: 1000 | U16: gpm | W16: Flow | X16: 1000 | Y16: gpm
C17: Flow | D17: =D16/7.4805 -> 1114.007531 | E17: ft3/min | F17: =F16/7.4805 -> 1123.290927 | G17: ft3/min | H17: =H16/7.4805 -> 2311.565626 | I17: ft3/min | K17: Flow | L17: =L16/7.4805 -> 2.673618074 | M17: ft3/min | O17: Flow | P17: =P16/7.4805 -> 742.7311009 | Q17: ft3/min | S17: Flow | T17: =T16/7.4805 -> 133.6809037 | U17: ft3/min | W17: Flow | X17: =X16/7.4805 -> 133.6809037 | Y17: ft3/min
C18: Diameter | D18: 194 | E18: ft | F18: 194 | G18: ft | H18: 194 | I18: ft | K18: Diameter | L18: 10 | M18: ft | O18: Diameter | P18: 190 | Q18: ft | S18: Diameter | T18: 45 | U18: ft | W18: Diameter | X18: 25 | Y18: ft
C19: Gal/ft | D19: =PI()*D18^2/4*7.4805 -> 221117.9343 | F19: =PI()*F18^2/4*7.4805 -> 221117.9343 | H19: =PI()*H18^2/4*7.4805 -> 221117.9343 | K19: Gal/ft | L19: =PI()*L18^2/4*7.4805 -> 587.5170961 | O19: Gal/ft | P19: =PI()*P18^2/4*7.4805 -> 212093.6717 | S19: Gal/ft | T19: =PI()*T18^2/4*7.4805 -> 11897.2212 | W19: Gal/ft | X19: =PI()*X18^2/4*7.4805 -> 3671.981851
C20: Max Ht | D20: 18 | F20: 18 | H20: 18 | K20: Max Ht | L20: 8.2 | O20: Max Ht | P20: 14.14 | S20: Max Ht | T20: 13.5 | W20: Max Ht | X20: 13.5
C21: Max Vol | D21: =D20*D19 -> 3980122.817 | E21: gal | F21: =F20*F19 -> 3980122.817 | G21: gal | H21: =H20*H19 -> 3980122.817 | I21: gal | K21: Max Vol | L21: =L20*L19 -> 4817.640188 | M21: gal | O21: Max Vol | P21: =P20*P19 -> 2999004.518 | Q21: gal | S21: Max Vol | T21: =T20*T19 -> 160612.4862 | U21: gal | W21: Max Vol | X21: =X20*X19 -> 49571.75499 | Y21: gal
B22: Run 1, 38% HT | C22: % of Ht | D22: 0.38 | F22: 0.9 | H22: 0.9 | K22: % of Ht | L22: 1 | O22: % of Ht | P22: 0.4135 | S22: % of Ht | T22: 0.825 | W22: % of Ht | X22: 0.825
C23: Tank Level | D23: =D22*D20 -> 6.84 | E23: water level | F23: =F22*F20 -> 16.2 | G23: water level | H23: =H22*H20 -> 16.2 | I23: water level | K23: Tank Level | L23: =L22*L20 -> 8.2 | M23: water level | O23: Tank Level | P23: =P22*P20 -> 5.84689 | Q23: water level | S23: Tank Level | T23: =T22*T20 -> 11.1375 | U23: water level | W23: Tank Level | X23: =X22*X20 -> 11.1375 | Y23: water level
C24: Working Vol | D24: =D23*D19 -> 1512446.671 | E24: gallons | F24: =F23*F19 -> 3582110.536 | G24: gallons | H24: =H23*H19 -> 3582110.536 | I24: gallons | K24: Working Vol | L24: =L23*L19 -> 4817.640188 | M24: gallons | O24: Working Vol | P24: =P23*P19 -> 1240088.368 | Q24: gallons | S24: Working Vol | T24: =T23*T19 -> 132505.3011 | U24: gallons | W24: Working Vol | X24: =X23*X19 -> 40896.69786 | Y24: gallons
C25: Avg section | D25: =$D$8*D23 -> 521.0959735 | E25: ft2 | F25: =$D$8*F23 -> 1234.174674 | G25: ft2 | H25: =$D$8*H23 -> 1234.174674 | I25: ft2 | K25: Avg section | L25: =L8*L23 -> 21.4675498 | M25: ft2 | O25: Avg section | P25: =P8*P23 -> 290.8353223 | Q25: ft2 | S25: Avg section | T25: =T8*T23 -> 98.4079355 | U25: ft2 | W25: Avg section | X25: =X8*X23 -> 36.44738352 | Y25: ft2
C26: Avg ft/min | D26: =D17/D25 -> 2.137816424 | F26: =F17/F25 -> 0.9101555481 | H26: =H17/H25 -> 1.872964723 | K26: Avg ft/min | L26: =L17/L25 -> 0.1245423022 | O26: Avg ft/min | P26: =P17/P25 -> 2.553785747 | S26: Avg ft/min | T26: =T17/T25 -> 1.358436218 | W26: Avg ft/min | X26: =X17/X25 -> 3.667777787
C27: LW * ft/min | D27: =D26*$D$12 -> 17.10253139 | F27: =F26*$D$12 -> 7.281244384 | H27: =H26*$D$12 -> 14.98371778 | K27: LW * ft/min | L27: =L26*L12 -> 1.494507626 | O27: LW * ft/min | P27: =P26*P12 -> 30.64542897 | S27: LW * ft/min | T27: =T26*T12 -> 21.73497948 | W27: LW * ft/min | X27: =X26*X12 -> 88.0266669
C29: T | D29: =D24/D16 -> 181.4936005 | E29: min | K29: T | L29: =L24/L16 -> 240.8820094 | M29: min | O29: T | P29: =P24/P16 -> 223.1980504 | Q29: min | S29: T | T29: =T24/T16 -> 132.5053011 | U29: min | W29: T | X29: =X24/X16 -> 40.89669786 | Y29: min
D33: =D16/D24 -> 0.005509836145 | L33: =L16/L24 -> 0.004151410072 | W33: For 5 baffles, it covers 276 degrees in length
D34: =D25/D16 -> 0.06253151681 | E34: =D27*D34 -> 1.069447229 | L34: =L25/L16 -> 1.07337749 | M34: =L27*L34 -> 1.604170844
W35: L:W should be 38
W36: width is 3.938

Sheet Tracer Database
B1: ='Main Menu'!B1 -> Copyright © 2001-2022 State Water Resources Control Board, Divison of Drinking Water, all rights reserved.
B4: Plate No. | C4: Configuration - Plan View | D4: Brief Description | F4: Plant Flow (MGD) | G4: Date of Test | H4: L/W | I4: Ave Velocity ft/min | J4: Log of (L:W * Vel) | K4: HRT min | L4: t10/HRT | M4: t50/HRT | N4: Morril Index t90/t10 | O4: Dispersion Index d | P4: Type of Inlet | Q4: Type of Outlet | R4: Tracer | S4: Reference
B7: 1 | F7: 11 | G7: 5/8/17 | H7: 1 | I7: =7639/7.4805/(17.5*38) -> 1.535621689 | J7: =LOG(1*I7) -> 0.1862842375 | K7: 27.1 | L7: 0.32 | M7: 0.87 | N7: 2.95 | P7: Horizontal overflow weir | Q7: pumped | R7: Fluoride | S7: 39
F8: =FIXED(F7*1000000/24/60,0) & " gpm" -> 7,639 gpm
D10: Pipeline volume: 9,400 gallons (100-ft linear, 4-Diam.)
D11: Influent weir & channel volume: 8,528 gallons
D12: Clearwell basin volume/ft: 10,800 gal/ft
D13: Total working volume during tracer study: 206,960 gallons
D14: 17.5 ft operating level
F18: 0.7 | G18: 3/21/70 | H18: 24.4 | K18: 44 | L18: 0.61 | M18: 0.91 | N18: 2.15 | O18: 0.072 | P18: Unbaffled Pipe Entrance | Q18: 90o V-Notch Weirs | R18: Rhodamine B Dye | S18: 1
D19: Cross Baffled | F19: =FIXED(F18*1000000/24/60,0) & " gpm" -> 486 gpm
B20: =1+B7 -> 2 | D20: Serpentine Basin | F20: 1.1 | G20: 4/21/71 | H20: 21.7 | K20: 50 | L20: 0.55 | M20: 0.82 | N20: 2.19 | O20: 0.065 | P20: Unbaffled Pipe Entrance | Q20: Sharpcrested Weir | R20: Rhodamine B Dye | S20: 1
F21: =FIXED(F20*1000000/24/60,0) & " gpm" -> 764 gpm
F22: 0.5 | G22: 5/27/70 | H22: 12.5 | K22: 28 | L22: 0.51 | M22: 0.82 | N22: 2.7 | O22: 0.118 | P22: Unbaffled Pipe Entrance | Q22: 90o V-Notch Weirs | R22: Rhodamine B Dye | S22: 1
F23: =FIXED(F22*1000000/24/60,0) & " gpm" -> 347 gpm
D30: Baffled | F30: 2 | G30: 10/29/97 | H30: 9 | I30: 1.6 | J30: =LOG(H30*I30) -> 1.158362492 | K30: 69 | L30: 0.31 | M30: 0.78 | N30: 5.1 | O30: 0.2039 | P30: Baffled pipe entrance | Q30: Unbaffled pipe outlet | R30: Fluoride | S30: 7
D31: Serpentine Basin | F31: =FIXED(F30*1000000/24/60,0) & " gpm" -> 1,389 gpm
B32: =1+B20 -> 3 | D32: Water depth 10 ft
D33: 95.8K gallons operating volume
D35: Tracer Test: Step-Dose
B44: =1+B32 -> 4 | D44: Single Baffle Basin | F44: 16 | G44: Pre 1993 | H44: 6.9 | I44: 0.84 | J44: =LOG(6.9*I44) -> 0.7631283768 | K44: 35 | L44: 0.27 | M44: - | N44: 5.59 | O44: 0.29 | P44: Unbaffled Pipe Entrance | Q44: Unbaffled pipe outlet | R44: Fluoride | S44: 2
D45: Water depth 15 ft | F45: =FIXED(F44*1000000/24/60,0) & " gpm" -> 11,111 gpm | P45: 90o vertical bend upward | Q45: about midway of basin
P46: near top
D56: Single Baffle Basin | F56: 52 | G56: 7/29/19 | H56: 5 | I56: - | J56: - | K56: 185 | L56: 0.27 | M56: - | N56: - | P56: Bottom, 72-in diamter | Q56: Bottom, 72-in diamter | R56: Fluoride | S56: 50
D57: 22-ft Water Depth | F57: =FIXED(F56*1000000/24/60,0) & " gpm" -> 36,111 gpm
D58: Operating Volume: 6,695,000 gallons
B59: =1+B44 -> 5 | D59: Tracer Test: Modified Step-Dose
D70: Baffled
D71: Serpentine Basin
D72: Length: 52.7 ft | F72: 4.032 | G72: 9/15/01 | H72: 16.5 | I72: 0.84 | J72: =LOG(16.5*I72) -> 1.14176323 | K72: 28 | L72: 0.39 | M72: 0.71 | N72: 3.8 | O72: 0.09482 | P72: Unbaffled pipe entrance | Q72: Unbaffled pipe outlet | R72: Zinc | S72: 14
B73: =1+B59 -> 6 | D73: Depth: 8.45 ft water | F73: =FIXED(F72*1000000/24/60,0) & " gpm" -> 2,800 gpm
D74: Width: 23.5 ft
D75: 8, 6.8 & 3.7 ft channels
D76: 78,260 gal operating volume
D77: Tracer Test: Step-Dose
D79: Channel Width: 6'-5" | F79: 0.992 | G79: 7/12/19 | H79: 20 | I79: 1.79 | J79: =LOG(H79*I79) -> 1.553883027 | K79: 63.1 | L79: 0.6 | M79: 0.87 | N79: 2.26 | P79: Perforated baffled wall | Q79: Perforated baffled wall | R79: Fluoride | S79: 49
D80: 8-ft Depth | F80: =FIXED(F79*1000000/24/60,0) & " gpm" -> 689 gpm
B81: =1+B73 -> 7 | D81: Perforated Baffle Walls
D82: Baffle Walls (3-in Dia holes)
D83: Operating Volume: 43,500 gallons
D84: Tracer Test: Slug-Dose
D91: Baffled Serpentine Basin
D92: Test 1: 8.8 MG Vol, 12.2 ft Depth | F92: 34.9 | G92: 5/1/14 | H92: 21 | I92: 3.58 | J92: =LOG(21*I92) -> 1.876102321 | K92: 364 | L92: 0.59 | M92: - | N92: - | O92: - | P92: Unbaffled pipe entrance | Q92: Unbaffled pipe outlet | R92: Fluoride | S92: 32
B93: =1+B81 -> 8 | D93: Test 2: 7.9 MG Vol, 11 ft Depth | F93: 50 | G93: 2014-06-24 | H93: 21 | I93: =$I$92/F92*F93 -> 5.128939828 | J93: =LOG(21*I93) -> 2.032246899 | K93: 223 | L93: 0.53
D94: Test 3: 11.2 MG Vol, 15.5 ft Depth | F94: 65 | G94: 2014-09-09 | H94: 21 | I94: =$I$92/F93*F94 -> 4.654 | J94: =LOG(21*I94) -> 1.990045674 | K94: 241 | L94: 0.66
D96: Tracer Test: Modified Step-Dose
D102: Tanks in Series
D103: Baffled followed by
D104: none baffled tank
B105: =1+B93 -> 9 | D105: Test 1: 12.2 & 20.3 ft depths | F105: 34.9 | G105: 5/1/14 | H105: - | I105: - | J105: - | K105: 706 | L105: 0.55 | M105: - | N105: - | O105: - | P105: Unbaffled pipe entrance | Q105: Unbaffled pipe outlet | R105: Fluoride | S105: 32
D106: Test 2: 11 & 18.5 ft depths | F106: 50 | G106: 2014-06-24 | K106: 442 | L106: 0.55
D107: Test 3: 15.5 & 23 ft depths | F107: 65 | G107: 2014-09-09 | K107: 457 | L107: 0.59
D109: Tracer Test: Modified Step-Dose
D115: Longitudinal Baffled | F115: 1.5 | G115: 5/15/70 | H115: 70 | K115: 83 | L115: 0.63 | M115: 0.76 | N115: 1.43 | O115: 0.019 | P115: Unbaffled pipe entrance | Q115: Sharpcrested Weir | R115: Rhodamine B Dye | S115: 1
B116: =1+B105 -> 10 | D116: Serpentine Basin | F116: =FIXED(F115*1000000/24/60,0) & " gpm" -> 1,042 gpm
F117: 1.5 | G117: 5/16/70 | H117: 70 | K117: 83 | L117: 0.57 | M117: 0.71 | N117: 1.52 | O117: 0.024 | P117: Unbaffled pipe entrance | Q117: Sharpcrested Weir | R117: Rhodamine B Dye | S117: 1
F118: =FIXED(F117*1000000/24/60,0) & " gpm" -> 1,042 gpm
D122: Baffled Concrete | F122: 4.32 | G122: 2007-10-09 | H122: 76 | I122: 6.26 | J122: =LOG(76*I122) -> 2.677387925 | K122: 35.4 | L122: 0.7 | M122: 0.83 | N122: 1.8 | P122: 24-in Diameter | R122: Fluoride | S122: 24
D123: Serpentine Basin | F123: =FIXED(F122*1000000/24/60,0) & " gpm" -> 3,000 gpm | P123: water splashes against wall
D124: 1st channel 4.5-ft wide | F124: 4.32 | G124: 2007-10-09 | H124: 76 | K124: 35.4 | L124: 0.69 | R124: Fluoride | S124: 24
B125: =1+B116 -> 11 | D125: 2nd & 3rd channels are 3-ft wide | F125: =FIXED(F124*1000000/24/60,0) & " gpm" -> 3,000 gpm
D126: 4th channel is 10-ft wide
D127: Length: 77-ft; Width: 23.5-ft
D128: 11,942 Gal/Ft (12.5 ft operating level)
D129: Tracer Test: Modified Step-Dose
E132: Station 3 | F132: 10.2 | G132: 2019-02-26 | H132: 14 | I132: 9.8 | J132: =LOG(H132*I132) -> 2.137354111 | K132: 12.9 | L132: 0.66 | M132: 0.96 | N132: =1.38/L132 -> 2.090909091 | P132: Perpendicular to channel | Q132: Parralle to channel | R132: Fluoride | S132: 48
E133: Station 4 | F133: 10.2 | G133: 2019-02-26 | H133: 21.6 | I133: 9.8 | J133: =LOG(H133*I133) -> 2.325679827 | K133: 19.4 | L133: 0.77 | M133: 0.96 | N133: =1.26/L133 -> 1.636363636 | P133: 60-in diameter pipe | Q133: 60-in diameter pipe
B134: =1+B125 -> 12 | E134: Station 5 | F134: 10.2 | G134: 2019-02-26 | H134: 28.8 | I134: 9.8 | J134: =LOG(H134*I134) -> 2.450618563 | K134: 25.8 | L134: 0.76 | M134: 0.9 | N134: =1.24/L134 -> 1.631578947
E136: Station 4 | F136: 19.9 | G136: 2019-02-26 | H136: 21.6 | I136: 19.045 | J136: =LOG(H136*I136) -> 2.614234728 | K136: 9.9 | L136: 0.58 | M136: 0.82 | N136: =1.17/L136 -> 2.017241379
E137: Station 5 | F137: 19.9 | G137: 2019-02-26 | H137: 28.8 | I137: 19.045 | J137: =LOG(H137*I137) -> 2.739173465 | K137: 13.2 | L137: 0.72 | M137: 0.97 | N137: =1.16/L137 -> 1.611111111
D138: Baffled ozone contactor.
D139: Channel width: 9.7-ft.
D140: Channel length: 63-ft.
D141: Baffled length: 53.4-ft.
D142: Water depth: 10-ft
D143: Operating volume: 183,000 gal.
E151: Station 5 | F151: 24.75 | G151: 2019-08-19 | H151: 31.4 | I151: 26.9 | J151: =LOG(H151*I151) -> 2.926681928 | K151: 12.1 | L151: 0.76 | M151: 0.93 | N151: 1.59 | R151: Fluoride | S151: 51
E152: Station 6 | F152: 24.75 | G152: 2019-08-19 | H152: 46.7 | I152: 26.9 | J152: =LOG(H152*I152) -> 3.099069161 | K152: 16.1 | L152: 0.78 | M152: 0.93 | N152: 1.26
E154: Station 5 | F154: 12.42 | G154: 2020-01-08 | H154: 31.4 | I154: 13.5 | J154: =LOG(H154*I154) -> 2.627263417 | K154: 24.1 | L154: 0.63 | M154: 0.8 | N154: 1.69
E155: Station 6 | F155: 12.42 | G155: 2020-01-08 | H155: 46.7 | I155: 13.5 | J155: =LOG(H155*I155) -> 2.799650649 | K155: 23.6 | L155: 0.74 | M155: 0.88 | N155: 1.48
B156: =1+B134 -> 13 | D156: Baffled ozone contactor.
D157: Sample Station 5 Vol:
D158: 207,878 gallons
D159: Sample Station 6 Vol:
D160: 277,171 gallons
D161: Basin is a two-story contactor.
D162: Average water depth: 9-ft
B173: =1+B156 -> 14 | F173: 7.75008 | G173: 2020-06-04 | H173: 30 | I173: =5382/7.4805/(14*24) -> 2.141281618 | J173: =LOG(H173*I173) -> 1.807795043 | K173: 304 | L173: 0.63 | M173: - | N173: - | P173: Baffled | R173: Fluoride | S173: 53
F174: =FIXED(F173*1000000/24/60,0) & " gpm" -> 5,382 gpm | P174: 134 (12" x 8") openings
E176: Sampled at two inlet
E177: Locations to determine
E178: applied tracer dose.
E180: Steady-state inlet/outlet flows.
E181: Water Depth: 14-ft
E182: Working Vol: 1,636,362 gallons
E184: t10: 191 minutes
D194: Baffled
B195: =1+B173 -> 15 | D195: Serpentine Basin | F195: ? | G195: 1997 | H195: 56 | K195: ? | L195: 0.73 | M195: ? | N195: ? | O195: ? | P195: Unbaffled Pipe Entrance | Q195: Unbaffled pipe outlet | R195: NaCl | S195: 8
P196: 3-inches off floor | Q196: 6-inches off floor
D202: Baffled | F202: 26 | G202: 3/20/98 | H202: 27 | I202: 5.2 | J202: =LOG(25*I202) -> 2.113943352 | K202: 220 | L202: 0.53 | M202: 1.05 | N202: 4.4 | O202: 0.21613 | R202: Lithium | S202: 12
D203: Serpentine Basin | F203: =FIXED(F202*1000000/24/60,0) & " gpm" -> 18,056 gpm | H203: 25 | L203: 0.59
B204: =1+B195 -> 16 | D204: Water depth: 8.6 ft
D205: 4.0 MG operating volume
D206: 210' x 270'
I211: Basin | J211: HRT | K211: Modal | M211: Modal
I212: # | J212: minutes | K212: Contact time | M212: BF
D213: Chlorine contact basin | I213: 1 | J213: 166 | K213: 130 | M213: 0.78
D214: for wastewater. | I214: 2 | J214: 167 | K214: 135 | M214: 0.81
D215: 6.5-ft channel width & baffle opening. | F215: 2.256 | G215: 8/23/2016 | H215: 42 | I215: 3 | J215: 168 | K215: 155 | M215: 0.93 | R215: Fluoride | S215: 38
B216: =1+B204 -> 17 | D216: 130-ft channel length; | F216: =FIXED(F215*1000000/24/60,0) & " gpm" -> 1,567 gpm | I216: Combined 1-3: | J216: 166 | K216: 145 | M216: 0.87 | R216: Sluge Dose
D217: Basin L:W - 42:1
D218: 82,170 gallons/basin
D219: 6.5-ft water depth
B236: =1+B216 -> 18 | G236: 5/30/18 | H236: 52 | I236: 1.46 | J236: =LOG(H236*I236) -> 1.880356199 | K236: 126 | L236: 0.78 | M236: 1 | N236: 2 | P236: - | Q236: - | R236: Fluoride | S236: 43
H237: (for contact basin) | R237: Sluge Dose
J238: Modal Contact Time: | K238: 112
D250: Rectangular
B251: =B236+1 -> 19 | D251: Secondary | F251: 30.2 | G251: 3/7/70 | H251: 7.5 | K251: 37 | L251: 0.67 | M251: 0.95 | N251: 2.25 | O251: 0.081 | P251: Unbaffled ports | Q251: V-Notch Weirs | R251: Rhodamine B Dye | S251: 1
D252: Clarifier | F252: =FIXED(F251*1000000/24/60,0) & " gpm" -> 20,972 gpm | P252: Across face of inlet
D258: Rectangular | F258: 18.6 | G258: 7/8/99 | H258: - | K258: 105 | L258: 0.64 | M258: 0.95 | N258: - | O258: - | P258: Unbaffled ports for | Q258: V-Notch Weirs | R258: Lithium | S258: 13
B259: =B251+1 -> 20 | D259: Floculation/Sedimentation | F259: =FIXED(F258*1000000/24/60,0) & " gpm" -> 12,917 gpm | P259: each Flocculator
D260: Basin
D262: Test Test: Slug-Dose
B269: =B259+1 -> 21 | D269: Floculation Basins | F269: 18.6 | G269: 7/8/99 | H269: - | K269: 22.7 | L269: 0.46 | M269: 1.08 | N269: - | O269: - | P269: Unbaffled ports for | Q269: Unbaffled ports | R269: Lithium | S269: 13
F270: =FIXED(F269*1000000/24/60,0) & " gpm" -> 12,917 gpm | P270: each Flocculator
D271: Test Test: Slug-Dose
F275: 1.9 | G275: 5/2/70 | H275: 3 | K275: 63 | L275: 0.39 | M275: 0.72 | N275: 3.68 | O275: 0.254 | P275: Target baffled Ports | Q275: Cipolleti Weir | R275: Rhodamine B Dye | S275: 1
F276: =FIXED(F275*1000000/24/60,0) & " gpm" -> 1,319 gpm | P276: Across Face of Inlet
D277: Rectangular | F277: 1.9 | G277: 5/9/70 | H277: 3 | K277: 68 | L277: 0.49 | M277: 0.81 | N277: 2.97 | O277: 0.147 | P277: Target baffled Ports | Q277: Sharpcrested Weir | R277: Rhodamine B Dye | S277: 1
B278: =B269+1 -> 22 | D278: Concrete | F278: =FIXED(F277*1000000/24/60,0) & " gpm" -> 1,319 gpm | P278: Across Face of Inlet
D279: Basin | F279: 3.6 | G279: 4/24/71 | H279: 3 | K279: 35 | L279: 0.39 | M279: 0.63 | N279: 3.21 | O279: 0.149 | P279: Target baffled Ports | Q279: Sharpcrested Weir | R279: Rhodamine B Dye | S279: 1
F280: =FIXED(F279*1000000/24/60,0) & " gpm" -> 2,500 gpm | P280: Across Face of Inlet
F281: 0.3 | G281: 4/20/71 | H281: 9 | K281: 107 | L281: 0.31 | M281: 0.58 | N281: 3.83 | O281: 0.252 | P281: Target baffled Pipe | Q281: Sharpcrested Weir | R281: Rhodamine B Dye | S281: 1
F282: =FIXED(F281*1000000/24/60,0) & " gpm" -> 208 gpm | P282: Entrance
D284: Long, Narrow and
D285: Shallow Gunite | F285: 3.5 | G285: 1970-02-21 | H285: 21 | K285: 49 | L285: 0.59 | M285: 0.85 | N285: 2.14 | O285: 0.077 | P285: Unbaffled pipe entrance | Q285: Sharpcrested Weir | R285: Rhodamine B Dye | S285: 1
B286: =B278+1 -> 23 | D286: Lined Channel | F286: 3.4 | G286: 1970-03-20 | H286: 21 | K286: 50 | L286: 0.62 | M286: 0.78 | N286: 2.07 | O286: 0.084 | P286: Unbaffled pipe entrance | Q286: Sharpcrested Weir | R286: Rhodamine B Dye | S286: 1
D287: 3-ft deep; 16-ft wide; 335-ft long
D292: Serpentine - long rectangular
D293: channel; 16.8 ft deep; 7.5 ft wide | F293: 18.6 | G293: 7/8/99 | H293: 36 | I293: 13.7 | J293: =LOG(36*I293) -> 2.693023068 | K293: 22.3 | L293: 0.8 | M293: 1.18 | N293: 2 | O293: 0.07 | P293: Baffled pipe entrance | Q293: Baffled Outlet | R293: Fluoride | S293: 13
B294: =+B286+1 -> 24 | D294: channel; 272 ft long | F294: =FIXED(F293*1000000/24/60,0) & " gpm" -> 12,917 gpm
D296: Test Test: Slug-Dose
B309: =B294+1 -> 25 | D309: Unbaffled Basin | F309: 1.44 | G309: 11/20/97 | H309: - | K309: ? | L309: 0.19 | M309: ? | N309: ? | O309: ? | P309: Unbaffled pipe entrance | Q309: Unbaffled pipe outlet | R309: Fluoride | S309: 4
F310: =FIXED(F309*1000000/24/60,0) & " gpm" -> 1,000 gpm | P310: 3-inches off floor | Q310: 6-inches off floor
D326: Unbaffled Basin | F326: 0.26 | G326: 4/12/16 | H326: - | I326: - | J326: - | K326: 1540 | L326: 0.08 | M326: - | N326: - | O326: - | P326: top | Q326: bottom | R326: Fluoride | S326: 37
D327: Inlet/out 180o | F327: =FIXED(F326*1000000/24/60,0) & " gpm" -> 181 gpm
B328: =+B309+1 -> 26
F355: 0.173 | G355: 5/30/18 | H355: - | I355: - | J355: - | K355: 23.3 | L355: 0.07 | M355: 0.64 | N355: 34 | P355: Straight in | Q355: bottom | R355: Fluoride | S355: 43
B356: =+B328+1 -> 27 | F356: =FIXED(F355*1000000/24/60,0) & " gpm" -> 120 gpm | R356: Sluge Dose
D369: Unbaffled Basin
D370: test with/without PAX on
D371: Test inlet (bottom/top)
B378: =B356+1 -> 28
D381: Test 1 (22 ft avg opt level); PAX on; inlet bottom; | G381: 7/7/15 | H381: - | K381: 2727 | L381: 0.033 | P381: bottom (PAX on) | Q381: bottom | R381: Fluoride | S381: 33
D382: 139 gpm avg outlet; 255 gpm inlet; 379,000 gal avg volume
D383: Test 2 (23.2 ft avg opt level); PAX off; inlet bottom; | G383: 7/14/15 | H383: - | K383: 3518 | L383: 0.049 | P383: bottom (PAX off) | Q383: bottom | R383: Fluoride | S383: 33
D384: 114 gpm avg outlet; 255 gpm inlet; 401,000 gal avg volume
D385: Test 3 (18.7 ft avg opt level); PAX on, inlet top; | G385: 7/16/15 | H385: - | K385: 2360 | L385: 0.063 | P385: top (PAX on) | Q385: bottom | R385: Fluoride | S385: 33
D386: 136 gpm avg outlet; 255 gpm inlet; 321,000 gal avg volume
D387: Test 4 (21.6 ft avg opt level); PAX off, inlet top | G387: 7/28/15 | H387: - | K387: 2609 | L387: 0.091 | P387: top (PAX off) | Q387: bottom | R387: Fluoride | S387: 33
D388: 142 gpm avg outlet; 255 gpm inlet; 370,500 gal avg volume
D394: Unbaffled Basin
D395: test with PAX on
D396: Test inlet (top/bottom)
B400: =B378+1 -> 29
D408: Test 1 (21 ft avg opt level); PAX on; inlet top; | G408: 2015-09-29 | H408: - | K408: 2610 | L408: 0.084 | P408: top (PAX on) | Q408: bottom | R408: Fluoride | S408: 33
D409: 138 gpm avg outlet; 259 gpm inlet flow
D410: 360,700 gal avg volume | P410: bottom (PAX on) | Q410: bottom | R410: Fluoride | S410: 33
D412: Test 2 (23.1 ft avg opt level); PAX on; inlet bottom; | G412: 2015-10-13 | K412: 3440 | L412: 0.058
D413: 115 gpm avg outlet; 280 gpm inlet flow
D414: 395,600 gal avg volume
D415: Note: PAX was moved to different location from what is
D416: seen in Plate 18.
D423: Test 1 (26.2 ft avg opt level); Spray Aeration On; | G423: 8/13/15 | H423: - | K423: 1210 | L423: 0.30* | P423: Top (SolarBee Spray on) | Q423: bottom | R423: Fluoride | S423: 34
D424: Spray Aeration (229 gpm); 123 gpm intlet flow;
D425: 269 gpm outlet; 325,700 gal avg volume
D426: 6 hour test
D427: *test was cut short. The 0.3 is minimum value.
D428: Predicted baffling factor is 0.37.
B429: =B400+1 -> 30
D430: Test 2 (23.8 ft avg opt level); Spray Aeration Off; | G430: 8/25/15 | K430: 1100 | L430: 0.28 | P430: Top (SolarBee Spray off) | Q430: bottom | R430: Fluoride | S430: 34
D431: Spray Aeration (229 gpm); 123 gpm intlet flow;
D432: 271 gpm outlet; 295,880 gal avg volume
D433: 5.5 hour test
D441: Tracer was injected in small clearwell channel next to
D442: transfer pump suction line to large clearwell.
B458: =B429+1 -> 31 | D458: Unbaffled Basin | F458: 2.52 | G458: 2/9/96 | H458: - | I458: - | J458: - | K458: 50 | L458: 0.22 | M458: 0.74 | N458: 9.4 | O458: - | P458: 90 degree bend top of Tank | Q458: Bottom of tank | R458: Zinc | S458: 3
F459: =FIXED(F458*1000000/24/60,0) & " gpm" -> 1,750 gpm | Q459: 180o from inlet
B479: =B458+1 -> 32 | D479: Unbaffled Basin | F479: 3.67 | G479: 5/23/06 | H479: - | K479: 322 | L479: 0.15 | M479: - | N479: - | O479: - | P479: Flow in both directions | Q479: Unbaffled pipe outlet | R479: Fluoride | S479: 21
D480: Flow at top of tank | F480: =FIXED(F479*1000000/24/60,0) & " gpm" -> 2,549 gpm | P480: 31-ft off floor. | Q480: 7-inches off floor | R480: Step-Dose
D481: Outlet at bottom | P481: 14" diameter pipes | Q481: 16" diameter pipes
D496: Unbaffled Tank | F496: 0.69 | G496: 11/1/06 | H496: - | K496: 250 | L496: 0.1 | M496: - | N496: - | O496: - | P496: Perforated | Q496: Perforated | R496: Fluoride | S496: 22
D497: 12" PVC Inlet/outlet | F497: =FIXED(F496*1000000/24/60,0) & " gpm" -> 479 gpm | P497: Riser (14-ft) | Q497: Riser (14-ft) | R497: Step-Dose (SV)
B498: =B479+1 -> 33 | D498: Risers (14-ft)
D500: Tracer Test: Modified Step-Dose
E518: Tanks in series | F518: 2.52 | G518: 2/9/96 | H518: - | K518: 128 | L518: 0.34 | M518: 0.92 | N518: 5.4 | O518: - | P518: Tank1: 90 degree bend top | Q518: Tank 1: Bottom of tank | R518: Zinc | S518: 3
B519: =B498+1 -> 34 | F519: =FIXED(F518*1000000/24/60,0) & " gpm" -> 1,750 gpm | P519: of tank.
P520: Tank2: 90 degree bend top | Q520: Tank 2: Bottom of tank.
E521: Test Test: Step-Dose | P521: of tank.
B533: =B519+1 -> 35 | C533: Transmission Line (3,189-ft) + 2.0 MG + 2.0 MG operated in series.
... 261 more rows

Sheet Data (hidden)
Q1: Excludes | X1: Use vertical width for L:W | AB1: Excludes
C2: T10/T | P2: All | Q2: M&B | U2: Rectangle Tanks | X2: Over and under Tanks | AA2: L:W | AB2: M&B, Circular Tanks
B3: L/W | C3: Bishop's Study | D3: Santa Rosa | E3: City of Fairfield | F3: Marske & Boyle's Study | G3: SPH | H3: Carollo | J3: City of San Diego | K3: Kern CWA | L3: HEI | M3: REB | N3: DJWWTP | O3: L:W | P3: t10/T | Q3: t10/T | U3: L:W | V3: t10/T | X3: L:W | Y3: t10/T | AB3: t10/T | AK3: L/W | AL3: Bishop's Study
B4: 3 | F4: 0.24 | O4: 3 | P4: 0.24 | U4: 3 | X4: 3 | AA4: 3 | AK4: 3
B5: 4.4 | O5: 4.4 | U5: 4.4 | X5: 4.4 | AA5: 4.4
B6: 4.4 | O6: 4.4 | U6: 4.4 | X6: 4.4 | AA6: 4.4
B7: 6 | O7: 6 | U7: 6 | X7: 6 | Y7: 0.56
B8: 6 | O8: 6 | U8: 6 | X8: 6 | Y8: 0.62
B9: 6.9 | C9: 0.27 | O9: 6.9 | P9: 0.27 | Q9: 0.27 | U9: 7.4 | V9: 0.3 | X9: 7.4 | AA9: 6.9 | AB9: 0.27 | AK9: 7.4 | AL9: 0.3
B10: 7.5 | F10: 0.4 | O10: 7.5 | P10: 0.4 | U10: 7.5 | X10: 7.5 | AA10: 7.5 | AK10: 7.5
B11: 8 | O11: 8 | U11: 8 | X11: 8 | AA11: 8
B12: 9.3 | D12: 0.31 | O12: 9.3 | P12: 0.31 | Q12: 0.31 | U12: 9.3 | V12: 0.31 | X12: 9.3 | AA12: 9.3 | AK12: 9.3
B13: 10.35 | O13: 10.35 | U13: 10.4 | X13: 10.4 | AA13: 10.35
B14: 11 | D14: 0.37 | O14: 11 | P14: 0.37 | Q14: 0.37 | U14: 11 | X14: 11 | AA14: 11 | AB14: 0.37
B15: 11.5 | K15: 0.35 | O15: 11.5 | P15: 0.35 | Q15: 0.35 | U15: 11.5 | X15: 11.5 | AA15: 11.5 | AB15: 0.35
B16: 11.7 | D16: 0.39 | O16: 11.7 | P16: 0.39 | Q16: 0.39 | U16: 11.7 | X16: 11.7 | AA16: 11.7 | AB16: 0.39
B17: 12 | O17: 12 | U17: 12 | X17: 12 | Y17: 0.63 | AA17: 12
B18: 12.5 | F18: 0.51 | O18: 12.5 | P18: 0.51 | U18: 12.5 | V18: 0.51 | X18: 12.5 | AA18: 12.5 | AK18: 12.5
B19: 13 | O19: 13 | U19: 13 | X19: 13 | Y19: 0.74 | AA19: 13 | AK19: 13
B20: 16.5 | D20: 0.39 | O20: 16.5 | P20: 0.39 | Q20: 0.39 | U20: 16.5 | V20: 0.39 | X20: 16.5 | AA20: 16.5 | AK20: 16.5
B21: 16.6 | L21: 0.45 | O21: 16.6 | P21: 0.45 | Q21: 0.45 | U21: 16.6 | X21: 16.6 | AA21: 16.6 | AB21: 0.45
B22: 16.6 | D22: 0.5 | O22: 16.6 | P22: 0.5 | Q22: 0.5 | U22: 16.6 | X22: 16.6 | AA22: 16.6 | AB22: 0.5
B23: 16.7 | O23: 16.7 | U23: 16.7 | X23: 16.7 | AA23: 16.7 | AK23: 16.7 | AL23: 0.61
B24: 16.8 | O24: 16.8 | U24: 16.8 | X24: 16.8 | AA24: 16.8
B25: 16.8 | O25: 16.8 | U25: 16.8 | X25: 16.8 | AA25: 16.8
B26: 20 | D26: 0.6 | G26: 0.44 | O26: 20 | P26: 0.44 | Q26: 0.44 | U26: 20 | X26: 20 | AA26: 20 | AB26: 0.44 | AK26: 20
B27: 20 | O27: 20 | P27: 0.6 | Q27: 0.6 | U27: 20 | V27: 0.6 | X27: 27 | Y27: 0.75 | AA27: 20
B28: 21 | O28: 21 | U28: 21 | X28: 27 | Y28: 0.82 | AA28: 21
B29: 21 | N29: 0.59 | O29: 21 | P29: 0.59 | Q29: 0.59 | U29: 21 | V29: 0.59 | AA29: 21 | AK29: 21.7
B30: 21 | N30: 0.53 | O30: 21 | P30: 0.53 | Q30: 0.53 | U30: 21 | V30: 0.53 | AA30: 21 | AK30: 23.5
B31: 21 | N31: 0.66 | O31: 21 | P31: 0.66 | Q31: 0.66 | U31: 21 | V31: 0.66 | AA31: 21 | AK31: 24.4
B32: 21.7 | F32: 0.55 | O32: 21.7 | P32: 0.55 | Q32: 0.55 | U32: 21.7 | V32: 0.55 | AA32: 21.7 | AK32: 24.5
B33: 23.5 | O33: 23.5 | U33: 23.5 | AA33: 23.5
B34: 24.4 | F34: 0.61 | O34: 24.4 | P34: 0.61 | U34: 24.4 | V34: 0.61 | AA34: 24.4
B35: 24.5 | H35: 0.59 | O35: 24.5 | P35: 0.59 | Q35: 0.59 | U35: 24.5 | V35: 0.59 | AA35: 24.5
B36: 27 | D36: 0.4 | O36: 27 | P36: 0.4 | Q36: 0.4 | U36: 27 | AA36: 27
B37: 30 | D37: 0.63 | O37: 30 | P37: 0.63 | Q37: 0.63 | U37: 30 | V37: 0.63 | AA37: 30 | AB37: 0.63
B38: 34 | D38: 0.5 | O38: 34 | P38: 0.5 | Q38: 0.5 | U38: 34 | AA38: 34 | AB38: 0.5 | AK38: 37.7
B39: 37.6 | K39: 0.55 | O39: 37.6 | P39: 0.55 | Q39: 0.55 | U39: 37.6 | V39: 0.55 | AA39: 37.6 | AK39: 46 | AL39: 0.64
B40: 37.6 | K40: 0.64 | O40: 37.6 | P40: 0.64 | Q40: 0.64 | U40: 37.6 | V40: 0.64 | AA40: 37.6 | AK40: 56
B41: 37.7 | J41: 0.52 | O41: 37.7 | P41: 0.52 | Q41: 0.52 | AA41: 37.7 | AB41: 0.52 | AK41: 70
B42: 46 | O42: 46 | U42: 46 | AA42: 46 | AK42: 70
B43: 56 | E43: 0.73 | O43: 56 | P43: 0.73 | Q43: 0.73 | U43: 56 | V43: 0.73 | AA43: 56 | AK43: 70
B44: 70 | F44: 0.57 | O44: 70 | P44: 0.57 | U44: 70 | V44: 0.57 | AA44: 70
B45: 70 | F45: 0.63 | O45: 70 | P45: 0.63 | U45: 70 | V45: 0.63 | AA45: 70 | AK45: 81
B46: 70 | M46: 0.73 | O46: 70 | P46: 0.73 | Q46: 0.73 | U46: 70 | V46: 0.73 | AA46: 70
B47: 76 | D47: 0.7 | O47: 76 | P47: 0.7 | Q47: 0.7 | U47: 76 | V47: 0.7 | AA47: 76
B48: 81 | D48: 0.78 | O48: 81 | P48: 0.78 | Q48: 0.78 | U48: 81 | AA48: 81 | AB48: 0.78
B53: L/W | C53: Vel, ft/min | D53: (vel*L:W)0.5 | E53: BF | F53: log(vel*L:W)
B54: 6.9 | C54: 0.84 | D54: =(B54*C54)^0.5 -> 2.407488318 | E54: 0.27 | F54: =LOG(B54*C54) -> 0.7631283768
B55: 9 | C55: 1.6 | D55: 3.794733192 | E55: 0.31 | F55: 1.158362492
B56: 11 | C56: 0.74 | D56: 2.853068524 | E56: 0.37 | F56: 0.9106244049
B57: 11.5 | C57: 2.6 | D57: 5.468089246 | E57: 0.35 | F57: 1.475671188
B58: 16.5 | C58: 0.84 | D58: 3.722902094 | E58: 0.39 | F58: 1.14176323
B59: 8 | C59: 0.91 | D59: 2.698147513 | E59: 0.42 | F59: 0.8621313793
B60: 16.6 | C60: 1.9 | D60: 5.616048433 | E60: 0.45 | F60: 1.498861689
B61: 8 | C61: 1.87 | D61: 3.867815921 | E61: 0.49 | F61: 1.174931594
B62: 16 | C62: 1.36 | D62: 4.664761516 | E62: 0.5 | F62: 1.337658891
B63: 34.1 | C63: 1.19 | D63: 6.370164833 | E63: 0.5 | F63: 1.60830134
B64: 37
B65: 4.4 | C65: 10 | D65: 6.633249581 | E65: 0.56 | F65: 1.643452676
B66: 8 | C66: 2.1 | D66: 4.098780306 | E66: 0.57 | F66: 1.225309282
B67: 21 | C67: 3.58 | D67: =(B67*C67)^0.5 -> 8.670640115 | E67: 0.59 | F67: =LOG(B67*C67) -> 1.876102321
B68: 20 | C68: 1.79 | D68: 5.983310121 | E68: 0.6 | F68: 1.553883027
B69: 21 | C69: 5.13 | D69: 10.37930634 | E69: 0.53 | F69: 2.03233666
B70: 21 | C70: 4.65 | D70: 9.881801455 | E70: 0.66 | F70: 1.989672248
B71: 25 | C71: 5.2 | D71: 11.40175425 | E71: 0.59 | F71: 2.113943352
B72: 4.4 | C72: 12.8 | D72: 7.504665216 | E72: 0.62 | F72: 1.750662646
B73: 8 | C73: 12.8 | D73: 10.11928851 | E73: 0.63 | F73: 2.010299957
B74: 76 | C74: 6.3 | D74: 21.88149903 | E74: 0.7 | F74: 2.680154142
B75: 24 | C75: 2.8 | D75: 8.197560613 | E75: 0.7 | F75: 1.827369273
B76: 70 | C76: 1.79 | D76: 11.19374826 | E76: 0.73 | F76: 2.097951071
B77: 16.8 | C77: 10 | D77: 12.9614814 | E77: 0.75 | F77: 2.225309282
B78: 28.8 | C78: 9.8 | D78: 16.8 | E78: 0.76 | F78: 2.450618563
B79: 81 | C79: 4.15 | D79: 18.33439391 | E79: 0.78 | F79: 2.526533116
B80: 36 | C80: 13.7 | D80: 22.20810663 | E80: 0.8 | F80: 2.693023068
B81: 16.8 | C81: 12.8 | D81: 14.66424222 | E81: 0.82 | F81: 2.332519251
B82: 27 | C82: 0.5 | D82: 3.674234614 | E82: 0.4 | F82: 1.130333768
B83: 30 | C83: 2.14 | D83: 8.01249025 | E83: 0.63 | F83: 1.807535028
B84: 31.4 | C84: 13.5 | D84: 20.58883192 | E84: 0.63 | F84: 2.627263417
B85: 31.4 | C85: 26.9 | D85: 29.06303494 | E85: 0.76 | F85: 2.926681928
B86: 46.7 | C86: 13.5 | D86: 25.10876341 | E86: 0.74 | F86: 2.799650649
B87: 46.7 | C87: 26.9 | D87: 35.44333506 | E87: 0.78 | F87: 3.099069161
B88: 76 | C88: 0.264 | D88: 4.479285657 | E88: 0.82 | F88: 1.302417519
B89: 192 | C89: 0.264 | D89: 7.119550548 | E89: 0.82 | F89: 1.704905156
B90: 114 | C90: 0.264 | D90: 5.485982136 | E90: 0.84 | F90: 1.478508778
B91: 153 | C91: 0.264 | D91: 6.355470085 | E91: 0.85 | F91: 1.606295358
B92: 422 | C92: 0.264 | D92: 10.55499882 | E92: 0.96 | F92: 2.046916378
B95: 12 | C95: 0.125 | D95: =(B95*C95)^0.5 -> 1.224744871 | E95: 0.39 | F95: =LOG(B95*C95) -> 0.1760912591
B97: 8 | C97: 0.91 | D97: =(B97*C97)^0.5 -> 2.698147513 | E97: 0.42 | F97: =LOG(B97*C97) -> 0.8621313793
B98: 8 | C98: 1.87 | D98: =(B98*C98)^0.5 -> 3.867815921 | E98: 0.49 | F98: =LOG(B98*C98) -> 1.174931594
B99: 8 | C99: 2.1 | D99: =(B99*C99)^0.5 -> 4.098780306 | E99: 0.57 | F99: =LOG(B99*C99) -> 1.225309282

Sheet Predicted t10
B2: Baffled Tanks
B3: Predicted t10/HRT based on
B4: the following data
C6: Set 1 | D6: Set 2 | E6: Set 3 | F6: Set 4 | G6: New | H6: Set 5 | AF6: Set 1 | AH6: Set 3
C7: R2 = 0.735 | D7: R2 = 0.747 | E7: R2 = 0.742 | F7: R2 = 0.83 | G7: Log(L:W * Vel) | H7: R2 = 0.763 | AF7: R2 = 0.76 | AH7: R2 = 0.76
C8: n = 31 | D8: n = 11 | E8: n = 25 | F8: n = 7 | G8: Vel: ft/min | H8: n = 33 | AH8: n = 3
B9: L//W | C9: t10/HRT | D9: t10/HRT | E9: t10/HRT | F9: t10/HRT | H9: t10/HRT | AF9: T10/T | AH9: t10/T
B10: 4 | C10: =0.1822*B10^0.3237 -> 0.2853876608 | D10: =0.1605*B10^0.352 -> 0.2614569277 | E10: =0.1543*B10^0.3751 -> 0.2595366107 | F10: =0.1091*LN(B10)+0.1835 -> 0.3347447148 | G10: 0.7 | H10: =0.2118*G10+0.1935 -> 0.34176 | AF10: =0.1425*LN(B10)+0.0741 -> 0.2716469465 | AH10: =0.1798*LN(B10)-0.0015 -> 0.2477557261
B11: =B10+2 -> 6 | C11: =0.1822*B11^0.3237 -> 0.3254137745 | D11: =0.1605*B11^0.352 -> 0.3015673203 | E11: =0.1543*B11^0.3751 -> 0.3021693846 | F11: =0.1091*LN(B11)+0.1835 -> 0.3789809581 | G11: 0.75 | H11: 0.35235 | AF11: 0.3294257244 | AH11: 0.3206583526
B12: =B11+2 -> 8 | C12: 0.3571729834 | D12: 0.3337049987 | E12: =0.1543*B12^0.3751 -> 0.3366006732 | F12: 0.4103670722 | G12: 0.8 | H12: 0.36294 | AF12: 0.3704204197 | AH12: 0.3723835892
B13: 10 | C13: 0.3839267501 | D13: 0.3609732642 | E13: =0.1543*B13^0.3751 -> 0.3659872248 | F13: 0.4347120336 | G13: 0.85 | H13: 0.37353 | AF13: 0.4022183758 | AH13: 0.4125047997
B14: 12 | C14: 0.407267113 | D14: 0.3848990466 | E14: 0.3918923731 | F14: 0.4546033155 | G14: 0.9 | H14: 0.38412 | AF14: 0.4281991976 | AH14: 0.4452862156
B15: 14 | C15: 0.4281047217 | D15: 0.4063610794 | E15: 0.4152202755 | F15: 0.4714211547 | G15: 0.95 | H15: 0.39471 | AF15: 0.4501656695 | AH15: 0.4730025079
B16: 16 | C16: 0.447014912 | D16: 0.4259172901 | E16: 0.4365473252 | F16: 0.4859894296 | G16: 1 | H16: 0.4053 | AF16: 0.4691938929 | AH16: 0.4970114523
B17: 18 | C17: 0.4643870309 | D17: 0.4439468293 | E17: 0.4562665626 | F17: 0.4988395588 | G17: 1.05 | H17: 0.41589 | AF17: 0.4859779755 | AH17: 0.5181888421
B18: 20 | C18: 0.480498219 | D18: 0.4607205619 | E18: 0.4746596093 | F18: 0.510334391 | G18: 1.1 | H18: 0.42648 | AF18: 0.500991849 | AH18: 0.5371326628
B19: 22 | C19: 0.4955535532 | D19: 0.476439566 | E19: 0.4919360772 | F19: 0.5207327317 | G19: 1.15 | H19: 0.43707 | AF19: 0.5145735496 | AH19: 0.5542694331
B20: 24 | C20: 0.5097095276 | D20: 0.4912577263 | E20: 0.5082567591 | F20: 0.5302256729 | G20: 1.2 | H20: 0.44766 | AF20: 0.5269726708 | AH20: 0.5699140787
B21: 26 | C21: 0.5230885881 | D21: 0.5052957614 | E21: 0.5237480619 | F21: 0.5389583323 | G21: 1.25 | H21: 0.45825 | AF21: 0.5383787567 | AH21: 0.5843057575
B22: 28 | C22: 0.5357885488 | D22: 0.5186503362 | E22: 0.5385114026 | F22: 0.5470435121 | G22: 1.3 | H22: 0.46884 | AF22: 0.5489391427 | AH22: 0.5976303709
B23: 30 | C23: =0.1822*B23^0.3237 -> 0.5478889264 | D23: =0.1605*B23^0.352 -> 0.531400206 | E23: 0.5526295565 | F23: 0.5545706343 | G23: 1.35 | H23: 0.47943 | AF23: 0.5587706269 | AH23: 0.6100352892
B24: 32 | C24: =0.1822*B24^0.3237 -> 0.5594553362 | D24: =0.1605*B24^0.352 -> 0.5436104905 | E24: 0.5661710814 | F24: 0.561611787 | G24: 1.4 | H24: 0.49002 | AF24: 0.5679673661 | AH24: 0.6216393153
B25: 34 | C25: 0.5705426278 | D25: 0.5553357286 | E25: 0.5791934847 | F25: 0.5682259332 | G25: 1.45 | H25: 0.50061 | AF25: 0.5766063748 | AH25: 0.6325396223
B26: 36 | C26: 0.5811971716 | D26: 0.56662211 | E26: 0.5917455411 | F26: 0.5744619162 | G26: 1.5 | H26: 0.5112 | AF26: 0.5847514487 | AH26: 0.6428167051
B27: 38 | C27: 0.5914585617 | D27: 0.577509141 | E27: 0.6038690247 | F27: 0.58036065 | G27: 1.55 | H27: 0.52179 | AF27: 0.5924560278 | AH27: 0.6525379915
B28: 40 | C28: 0.6013609064 | D28: 0.5880309076 | E28: 0.615600025 | F28: 0.5859567484 | G28: 1.6 | H28: 0.53238 | AF28: 0.5997653222 | AH28: 0.6617605258
B29: 42 | C29: 0.6109338207 | D29: 0.5982170501 | E29: 0.6269699628 | F29: 0.5912797554 | G29: 1.65 | H29: 0.54297 | AF29: 0.6067179206 | AH29: 0.6705329974
B30: 44 | C30: 0.6202032019 | D30: 0.6080935247 | E30: 0.6380063849 | F30: 0.5963550891 | G30: 1.7 | H30: 0.55356 | AF30: 0.6133470228 | AH30: 0.6788972962
B31: 46 | C31: 0.6291918416 | D31: 0.6176832059 | E31: 0.6487335951 | F31: 0.6012047764 | G31: 1.75 | H31: 0.56415 | AF31: 0.619681399 | AH31: 0.6868897231
B32: 48 | C32: 0.6379199161 | D32: 0.627006369 | E32: 0.6591731579 | F32: 0.6058480303 | G32: 1.8 | H32: 0.57474 | AF32: 0.6257461441 | AH32: 0.6945419418
B33: 50 | C33: 0.646405381 | D33: 0.6360810806 | E33: 0.6693443082 | F33: 0.6103017099 | G33: 1.85 | H33: 0.58533 | AF33: 0.6315632783 | AH33: 0.7018817364
B34: 52 | C34: 0.6546642943 | D34: 0.644923517 | E34: 0.6792642847 | F34: 0.6145806897 | G34: 1.9 | H34: 0.59592 | AF34: 0.6371522299 | AH34: 0.7089336206
B35: 54 | C35: 0.6627110815 | D35: 0.6535482261 | E35: 0.6889486054 | F35: 0.6186981595 | G35: 1.95 | H35: 0.60651 | AF35: 0.6425302266 | AH35: 0.7157193316
B36: 56 | C36: 0.6705587547 | D36: 0.6619683451 | E36: 0.698411296 | F36: 0.6226658695 | G36: 2 | H36: 0.6171 | AF36: 0.6477126159 | AH36: 0.722258234
B37: 58 | C37: 0.6782190968 | D37: 0.6701957824 | E37: 0.7076650812 | F37: 0.6264943325 | G37: 2.05 | H37: 0.62769 | AF37: 0.652713129 | AH37: 0.7285676533
B38: 60 | C38: 0.685702815 | D38: 0.6782413706 | E38: 0.7167215455 | F38: 0.6301929917 | G38: 2.1 | H38: 0.63828 | AF38: 0.6575441001 | AH38: 0.7346631523
B39: 62 | C39: 0.6930196718 | D39: 0.6861149958 | E39: 0.7255912699 | F39: 0.6337703614 | G39: 2.15 | H39: 0.64887 | AF39: 0.6622166499 | AH39: 0.7405587624
B40: 64 | C40: 0.7001785955 | D40: 0.6938257081 | E40: 0.734283948 | F40: 0.6372341444 | G40: 2.2 | H40: 0.65946 | AF40: 0.6667408394 | AH40: 0.7462671784
B41: 66 | C41: 0.7071877751 | D41: 0.7013818158 | E41: 0.7428084855 | F41: 0.6405913324 | G41: 2.25 | H41: 0.67005 | AF41: 0.6711258007 | AH41: 0.7517999226
B42: 68 | C42: 0.7140547421 | D42: 0.7087909668 | E42: 0.7511730863 | F42: 0.6438482906 | G42: 2.3 | H42: 0.68064 | AF42: 0.675379848 | AH42: 0.7571674854
B43: 70 | C43: 0.7207864407 | D43: 0.7160602187 | E43: 0.7593853262 | F43: 0.6470108309 | G43: 2.35 | H43: 0.69123 | AF43: 0.679510572 | AH43: 0.7623794445
B44: 72 | C44: 0.7273892891 | D44: 0.7231961001 | E44: 0.7674522178 | F44: 0.6500842736 | G44: 2.4 | H44: 0.70182 | AF44: 0.683524922 | AH44: 0.7674445682
B45: 74 | C45: 0.7338692326 | D45: 0.7302046632 | E45: 0.7753802668 | F45: 0.6530735017 | G45: 2.45 | H45: 0.71241 | AF45: 0.6874292758 | AH45: 0.7723709038
B46: 76 | C46: 0.7402317901 | D46: 0.7370915309 | E46: 0.7831755208 | F46: 0.6559830074 | G46: 2.5 | H46: 0.723 | AF46: 0.691229501 | AH46: 0.7771658546
B47: 78 | C47: 0.7464820954 | D47: 0.7438619374 | E47: 0.790843613 | F47: 0.658816933 | G47: 2.55 | H47: 0.73359 | AF47: 0.6949310078 | AH47: 0.781836247
B48: 80 | C48: 0.7526249328 | D48: 0.7505207643 | E48: 0.7983898005 | F48: 0.6615791058 | G48: 2.6 | H48: 0.74418 | AF48: 0.6985387954 | AH48: 0.7863883889
B49: 82 | C49: 0.7586647689 | D49: 0.7570725727 | E49: 0.805818998 | F49: 0.6642730699 | G49: 2.65 | H49: 0.75477 | AF49: 0.7020574927 | AH49: 0.7908281207

Sheet Definition
B3: Performance parameters commonly used in conventional
B4: conventional analysis of contact basins.
B6: Parameter | C6: Definition
B8: HRT | C8: Hydraulic Residence Time (HRTor T)
B9: t10, t50, t90 | C9: Time for 10, 50, and 90 percent of the tracer to
C10: pass through the reactor.
B12: t10/HRT | C12: Index of short-circuiting
B13: t50/HRT | C13: Index of mean detention time
B15: t90/t10 | C15: Morril dispersion index, indicates degree of
C16: mixing, as t90/t10 increases the degree of mixing
C17: increases. Likewise, as t90/t10 approaches 1.0
C18: plug flow conditions are observed.
B20: d | C20: Dispersion index, indicates degree of tracer
C21: dispersion. Under ideal plug flow conditions,
C22: the value of d should approach zero.
C23: The dispersion index calculation includes all points
C24: of the dispersion curve.
B26: L/W | C26: Length to width ratio of flow. Length is the total
C27: flow travel in the baffled channel divided by the
C28: width of the channel.

Sheet Reference
B2: References
B5: 1. | C5: Marske, M. Donald & Boyle, D. Jerry. Chlorine Contact Chamber Design - A Field Evaluation.
C6: Water and Sewage Works, 120:1:70 (Jan. 1973).
B8: 2. | C8: Bishop, M. Mark; Morgan, M; Cornwell, Brendon & Jamison, K. Donald. Improving the Disinfection
C9: Detention Time of a Water Plant Clearwell. Jour. AWWA, 85:3:68 (March 1993).
B11: 3. | C11: Schott, J. Guy & Rezvani, R. Ali. Department of Health Services,
C12: Drinking Water Field Operations Branch, Santa Rosa, CA.
C13: Millview County Water District, Water Treatment Plant Tracer Study, (February 1996).
B15: 4. | C15: California Cities Water Company, Sonoma Water Treatment Plant Tracer Study, (1996).
B17: 5. | C17: Schott, J. Guy & Rezvani, R. Ali. Department of Health Services,
C18: Drinking Water Field Operations Branch, Santa Rosa, CA.
C19: City of Cloverdale, Water Treatment Plant Tracer Study, (August 1996).
B21: 6. | C21: Montgomery Watson. Stockton East Water District Tracer Study, (September 1997).
B23: 7. | C23: Schott, J. Guy; Zensius, David & Crevistion, Stacy. Department of Health Services,
C24: Drinking Water Field Operations Branch, Santa Rosa, CA.
C25: City of American Canyon Tracer Study, (October 1997).
B27: 8. | C27: Fleege, Niles. City of Fairfield Water Treatment Plant
C28: Tracer Study, (1997).
B30: 9. | C30: Schott, J. Guy & Lambeth, Debra. Department of Health Services,
C31: Drinking Water Field Operations Branch, Santa Rosa, CA.
C32: California Cities Water Company, Sonoma Water Treatment Plant Tracer Study, (November 1997).
B34: 10. | C34: City of San Diego. Clearwell Tracer Study for the Alvarado, Otay and Miramar
C35: Water Treatment Plants, (November 1997).
B37: 11. | C37: Schott, J. Guy & Rezvani, R. Ali. Department of Health Services,
C38: Drinking Water Field Operations Branch, Santa Rosa, CA.
C39: Konocti Harbor Resort & Spa, Water Treatment Plant Tracer Study, (October 1998).
B41: 12. | C41: Carollo Engineers. Sweetwater Authority, Robert Perdue WTP Clear Well
C42: Tracer Study, (January 1999).
B44: 13. | C44: Schott, J. Guy; Rezvani, R. Ali & Oakley, Janice. Department of Health Services,
C45: Drinking Water Field Operations Branch, Santa Rosa, CA.
C46: City of Napa, Hennessey Water Treatment Plant Tracer Study, (July 1999).
B48: 14. | C48: Schott, J. Guy; Gjestland, Wendy & Watada, Marianne. Department of Health Services,
C49: Drinking Water Field Operations Branch, Santa Rosa, CA.
C50: Veterans Home of California Tracer Study, (September 2001).
B52: 15. | C52: Schott, J. Guy; Gjestland, Wendy & Burton, H. Bruce. Department of Health Services,
C53: Drinking Water Field Operations Branch, Santa Rosa, CA.
C54: Murphys Sanitary District Tracer Study, (January 30, 2003).
B56: 16. | C56: Schott, J. Guy, Watada, Marianne & Carter, Chris. Department of Health Services,
C57: Drinking Water Field Operations Branch, Santa Rosa, CA.
C58: Sereno Del Mar Water Treatment Plant Tracer Study, (September 11, 2003).
C59: 4,800 Gallon Clearwell Tracer Study
A61: ` | B61: 17. | C61: Kern County Water Agency. Clearwell Tracer Study For Impovement District No. 4
C62: Henry C. Garnett Water Purification Plant, (March 17 & July 21, 2004).
B64: 18. | C64: Western Hills Water District. Diablo Grande Water Supply and
C65: Treatment Facilities Tracer Study, (March 8 and June 8 & 9, 2005).
B67: 19. | C67: Hagen Enginering International, Inc.,
C68: City of Clovis Public Utilites Department, (April 7, 2005).
B70: 20. | C70: Schott, J. Guy & Burton, H. Bruce. Department of Health Services,
C71: Drinking Water Field Operations Branch, Santa Rosa, CA.
C72: Robert Moorhead & Glenn Knapp, City of Fresno, CA.
C73: City of Fresno (North Treatment Plant) Ozone Tracer Study, (October 20 & 21, 2005).
B75: 21. | C75: Seldon, Brenda & Tuolumne Utilities District Staff.
C76: Sonora, CA
C77: Tuolumne Utilities District Tracer Study, (May 23, 2006).
B79: 22. | C79: Schott, J. Guy, Little, Amy & Frederich, Michelle. Department of Health Services,
C80: Drinking Water Field Operations Branch, Santa Rosa, CA.
C81: Melluish, Robert, Brooktrails Township CSD Tracer Study, (November 1, 2006).
C82: 50,000 & 160,000 Gallon Clearwells Tracer Study
B84: 23. | C84: Black & Veatch
C85: 3 MG Clearwell Tracer Study
C86: Northwest Bakersfield Water Treatment Plant, (September 11, 2007).
B88: 24. | C88: Schott, J. Guy & Kroll, Wendy Jo. California Department of Public of Health,
C89: Drinking Water Field Operations Branch, Santa Rosa, CA.
C90: Jamison, Alan, City of Ukiah Tracer Study, (October 10, 2007).
C91: 119,000 Gallon Clearwell (at 10-ft level) Tracer Study
B93: 25. | C93: Schott, J. Guy & Amy Little. California Department of Public of Health,
C94: Drinking Water Field Operations Branch, Santa Rosa, CA.
C95: Berryessa Pines Tracer Study, (October 19, 2007).
C96: 13,790 Gallon Clearwell Tracer Study
B98: 26. | C98: HDR. City of Yuba City Tracer Study, (November 20, 2007).
C99: 4 MG Clearwell Tracer Study
B101: 27. | C101: Schott, J. Guy, Bruce Burton & Reese Crenshaw. California Department of Public of Health,
C102: Drinking Water Field Operations Branch, Santa Rosa, CA.
C103: City of Yuba City Tracer Study, (February 26 & October 19, 2008).
C104: 4 MG Clearwell Tracer Study
B106: 28. | C106: HDR. Stockton East Water District Tracer Study, (June 2008 Report).
C107: 10.5 MG Clearwell Tracer Study
B109: 29. | C109: Schott, J. Guy. California Department of Public of Health,
C110: Drinking Water Field Operations Branch, Santa Rosa, CA.
C111: Five Points Tracer Studies, (November 19-21, 2008).
B113: 30. | C113: WQTS. R.E. Badger Water Filtration Plant Tracer Study, (June 29 2012 Report).
C114: 12 MG Clearwell Tracer Study
B116: 31. | C116: Carollo Engineers. City of Lodi 3.0 MG Clearwell Tracer Study, (October 2013 Report).
B118: 32. | C118: Black & Veatch Corporation. SEWD - WTP Clearwells in Series Tracer Study,
C119: (May 1, 2014, June 24, 2014, September 9, 2014).
B121: 33. | C121: Schott, J. Guy. State Water Resources Control Board
C122: Division of Drinking Water, Santa Rosa, CA.
C123: Howell Moutain MWC Tracer Study, (July 7, 14, 23 & 28, Sept 29 and Oct 13, 2015).
C124: 500,000 Gallon Clearwell Tracer Study
B126: 34. | C126: Schott, J. Guy. State Water Resources Control Board, Eval Luu (intern) & Hector Cazares
C127: Division of Drinking Water, Santa Rosa, CA.
C128: Lake County CSA 2 - Spring Valley Tracer Study, (August 13 & 25, 2015).
C129: 384,900 Gallon Clearwell Tracer Study - Modified Step-Dose
B131: 35. | C131: Schott, J. Guy. & Stufkosky, Karen, State Water Resources Control Board
C132: Division of Drinking Water, Santa Rosa, CA.
C133: Buckingham Water District (Lake County)- Tracer Study, (Feb 10, 2016 & May 8, 2017).
C134: 200,000 Gallon Single Baffled Clearwell Tracer Study - Modified Step-Dose
B136: 36. | C136: Schott, J. Guy. State Water Resources Control Board
C137: Division of Drinking Water, Santa Rosa, CA.
C138: City of Stockton (Lodi Membrane Plant)- Tracer Study, (Feb 22 & 23, 2016).
C139: 48,540 Gallon Ozone Pipeline Tracer Study - Modified Step-Dose
B141: 37. | C141: Schott, J. Guy. State Water Resources Control Board
C142: Division of Drinking Water, Santa Rosa, CA.
C143: Harris Farms/Horse Barn Tracer Study, (April 10, 2016).
C144: 274,700 Gallon Operating Level Clearwell Tracer Study
B146: 38. | C146: Schott, J. Guy. & Stufkosky, Karen, State Water Resources Control Board
C147: Division of Drinking Water, Santa Rosa, CA.
C148: Airport-Larkfield-Wiliup Sanitation Tracer Study, Sonoma County (August 23, 2016).
C149: Serpentine Chlorine Contact Basin for determining Modal Contact Time.
C150: Tracer Study - Sludge-Dose
B152: 39. | C152: Schott, J. Guy. & Little, Amy, State Water Resources Control Board
C153: Division of Drinking Water, Santa Rosa, CA.
C154: City of Fairfield Tracer Study, Solano County (May 8, 2017).
C155: Tracer Study - Step-Dose
B157: 40. | C157: Schott, J. Guy. & Little, Amy, State Water Resources Control Board
C158: Division of Drinking Water, Santa Rosa, CA.
C159: Gibson Canyon Tracer Study, Solano County (May 8, 2017).
C160: Tracer Study - Modified Step-Dose
B162: 41. | C162: Schott, J. Guy. & Kent, Aaron, State Water Resources Control Board
C163: Division of Drinking Water, Santa Rosa, CA.
C164: Gualala CSD Tracer Study, Sonoma County (May 15 & July 20, 2017).
C165: Tracer Study - Slug-Dose
B167: 42 | C167: Schott, J. Guy, State Water Resources Control Board
C168: Division of Drinking Water, Santa Rosa, CA.
C169: Gualala CSD Tracer Study, Sonoma County (August 9, 2017).
C170: Tracer Study - Slug-Dose
B172: 43 | C172: Schott, J. Guy., State Water Resources Control Board
C173: Division of Drinking Water, Santa Rosa, CA.
C174: Graton CSD Tracer Study, Sonoma County (May 30, 2018).
C175: Tracer Study - Slug-Dose
B177: 44 | C177: Schott, J. Guy., State Water Resources Control Board
C178: Division of Drinking Water, Santa Rosa, CA.
C179: City of Napa, Hennessey Water Treatment Plant Tracer Study, (July 17, 2018).
C180: Tracer Study -Modified Step-Dose
B182: 45 | C182: Schott, J. Guy., State Water Resources Control Board
C183: Division of Drinking Water, Santa Rosa, CA.
C184: Garberville Sanitary District Water Treatment Plant Tracer Study, (Sept 30-Sept 31, 2018).
C185: Tracer Study -Slug-Dose & Modified Step-Dose
B187: 46 | C187: Schott, J. Guy., State Water Resources Control Board
C188: Division of Drinking Water, Santa Rosa, CA.
C189: North Gualala Water Treatment Plant Tracer Study, (November 15, 2018).
C190: Tracer Study -Slug-Dose
B192: 47 | C192: Schott, J. Guy., State Water Resources Control Board
C193: Division of Drinking Water, Santa Rosa, CA.
C194: Garberville Sanitary District Water Treatment Plant Tracer Study, (February 4, 2019).
C195: Tracer Study -Modified Step-Dose
B197: 48 | C197: Schott, J. Guy., State Water Resources Control Board
C198: Division of Drinking Water, Santa Rosa, CA.
C199: Modesto Irrigation District, Ozone Contactor Tracer Study, (February 26 - 27, 2019).
C200: Tracer Study -Slug-Dose
B202: 49 | C202: Schott, J. Guy., State Water Resources Control Board
C203: Division of Drinking Water, Santa Rosa, CA.
C204: Georgetown Divide PUD Underground Serpentine Chlorine Contact Basin Tracer Study, (July 12, 2019).
C205: Tracer Study -Slug-Dose
B207: 50 | C207: Schott, J. Guy., State Water Resources Control Board
C208: Division of Drinking Water, Santa Rosa, CA.
C209: City of Fresno, South Water Treatment Plant 8 MG Clearwell Tracer Study, (July 29, 2019).
C210: Tracer Study -Modified Step-Dose
B212: 51 | C212: Schott, J. Guy., State Water Resources Control Board
C213: Division of Drinking Water, Santa Rosa, CA.
C214: City of Fresno, South Water Treatment Plant, Ozone Contactor Tracer Study, (Aug 19, 2019 & Jan 8, 2020).
C215: Tracer Study -Slug-Dose
B217: 52 | C217: Schott, J. Guy., State Water Resources Control Board
C218: Division of Drinking Water, Santa Rosa, CA.
C219: Kettleman City, Water Treatment Plant 115,730 gallons Clearwell Tracer Study, (November 21, 2019).
C220: Tracer Study -Modified Step-Dose
B222: 53 | C222: Schott, J. Guy., State Water Resources Control Board
C223: Division of Drinking Water, Santa Rosa, CA.
C224: South Feather Water & Power Agency (SFWPA) 1,636,362 gallons Clearwell Tracer Study, (June 4, 2020).
C225: Tracer Study -Modified Step-Dose
B227: 54 | C227: Schott, J. Guy. State Water Resources Control Board
C228: Division of Drinking Water, Santa Rosa, CA.
C229: Cement Hill Tracer Study, Solano County, Transmission Line + 2.0 MG Tank 2A + 2.0 MG Tank 2B (July 30, 2020).
C230: Tracer Study -Modified Step-Dose
B232: 55 | C232: Schott, J. Guy. State Water Resources Control Board
C233: Division of Drinking Water, Santa Rosa, CA.
C234: Konocti Harbor Resort, Water Treatment Plant Tracer Study, Clearwell 21,450 gallons, (April 23, 2021).
C235: Tracer Study -Modified Step-Dose
B237: 56 | C237: Schott, J. Guy. & Little, Amy, State Water Resources Control Board
C238: Division of Drinking Water, Santa Rosa, CA.
C239: City of Fairfield Tracer Study, Solano County (July 23, 2021).
C240: Ozone Contact Basin (6.0 MGD, over and under flow)
C241: Tracer Study - Slug-Dose
B243: 57 | C243: Schott, J. Guy, State Water Resources Control Board
C244: Division of Drinking Water, Santa Rosa, CA.
C245: Gualala CSD Tracer Study, Sonoma County (October 28, 2021).
C246: Tracer Study - Slug-Dose
B248: 58 | C248: Schott, J. Guy, State Water Resources Control Board
C249: Division of Drinking Water, Santa Rosa, CA.
C250: Clearlake Oaks CSD Tracer Study, Lake County (February 10, 2022).
C251: Tank Farm (19 x 10K Poly Tanks in Series)
C252: Tracer Study -Modified Step-Dose
